bitfinex/quotes_ETHUSD_20260207
["timestamp","ask_amount","ask_price","bid_price","bid_amount"]
[1770452817786,1.23232998,2027.7,2027.0,0.001]
[1770452817955,2.22235669,2027.6,2027.0,0.001]
[1770452818161,1.17341982,2027.6,2027.0,0.001]
[1770452818581,2.40645735,2027.6,2027.0,0.001]
[1770452818777,1.23232998,2027.4,2027.0,0.001]
[1770452818971,1.0484561,2027.3,2026.8,0.001]
[1770452819170,1.23232998,2027.4,2026.8,0.001]
[1770452819171,1.0484561,2027.2,2026.8,0.001]
[1770452819495,1.23232998,2027.4,2026.8,0.001]
[1770452819691,2.22150261,2027.3,2026.8,0.001]
[1770452819877,1.17341982,2027.3,2026.8,0.001]
[1770452820280,1.30826531,2027.7,2026.8,0.001]
[1770452820577,1.2329848,2027.6,2026.8,0.001]
[1770452820968,2.40640462,2027.6,2026.8,0.001]
[1770452821167,1.04790958,2027.5,2026.8,0.001]
[1770452821365,1.17341982,2027.6,2026.8,0.001]
[1770452821568,0.3773523,2027.5,2026.8,0.001]
[1770452821768,1.04772251,2027.4,2026.8,0.001]
[1770452821997,0.3773523,2027.5,2026.8,0.001]
[1770452822400,1.23286904,2027.8,2026.8,0.001]
[1770452822581,1.23284239,2027.9,2026.8,0.001]
[1770452822882,2.2815411,2027.8,2027.0,0.001]
[1770452823087,1.04864309,2027.7,2027.0,0.001]
[1770452823813,1.2325453,2028.4,2027.0,1.23001048]
[1770452824105,2.15473579,2028.4,2027.0,1.23001048]
[1770452824397,1.17341982,2028.3,2027.0,1.23001048]
[1770452824801,2.40600305,2028.3,2027.1,1.23328893]
[1770452826178,0.92219049,2028.4,2027.1,2.45292012]
[1770452826399,2.15470651,2028.4,2027.2,1.21963119]
[1770452826883,0.92219049,2028.4,2027.3,2.45279845]
[1770452827105,0.002,2028.5,2027.4,0.73854675]
[1770452827106,1.23444047,2028.5,2027.4,0.73854675]
[1770452827411,1.2344443,2028.5,2027.4,1.95817794]
[1770452827997,1.23249852,2028.4,2027.4,0.73854675]
[1770452828304,0.05891016,2028.2,2027.0,0.001]
[1770452828484,1.32608374,2028.2,2027.1,1.23324292]
[1770452828691,1.32608374,2028.2,2027.2,1.23322555]
[1770452828888,1.23268083,2028.1,2027.0,0.001]
[1770452830718,1.30826531,2028.0,2027.0,0.001]
[1770452830915,0.25409461,2027.9,2027.0,0.001]
[1770452831123,1.2328632,2027.8,2027.0,0.001]
[1770452831293,2.54112851,2027.8,2027.0,0.001]
[1770452831493,0.05891016,2027.6,2027.0,0.001]
[1770452831922,3.73904996,2027.8,2027.0,0.001]
[1770452832224,2.2711786,2027.7,2027.0,0.001]
[1770452832714,1.07325715,2027.7,2027.0,0.001]
[1770452832926,1.30826531,2027.8,2027.0,0.001]
[1770452833124,2.79520601,2027.9,2027.0,0.001]
[1770452833692,1.36717547,2027.8,2027.0,0.001]
[1770452833998,1.36717547,2027.8,2026.8,0.001]
[1770452833999,1.25683161,2027.2,2026.8,0.001]
[1770452834328,0.05891016,2027.1,2026.2,1.23480334]
[1770452834533,2.50618676,2027.0,2026.2,0.001]
[1770452835309,1.23341062,2026.9,2026.2,0.001]
[1770452835605,1.30826531,2026.8,2026.2,0.001]
[1770452835802,1.04987476,2026.7,2026.2,0.001]
[1770452836131,2.54167593,2026.9,2026.2,0.001]
[1770452836300,1.79609557,2026.8,2026.2,0.001]
[1770452836505,0.74753064,2026.8,2026.2,0.001]
[1770452836752,1.66475578,2027.1,2026.2,0.001]
[1770452837025,1.04877133,2027.0,2026.2,0.001]
[1770452837219,1.66475578,2027.1,2026.2,0.001]
[1770452837424,1.04815551,2027.0,2026.2,0.001]
[1770452837594,1.66475578,2027.1,2026.2,0.001]
[1770452837595,1.72366594,2027.1,2026.2,0.001]
[1770452837795,1.84448177,2027.0,2026.2,0.001]
[1770452838003,0.79650183,2027.0,2026.2,0.001]
[1770452839038,1.04774236,2026.9,2026.2,0.001]
[1770452839202,0.79650183,2027.0,2026.2,0.001]
[1770452839532,1.04771622,2026.9,2026.2,0.001]
[1770452839837,0.31365323,2026.8,2026.2,0.001]
[1770452840208,1.04704942,2026.7,2026.2,0.001]
[1770452840539,0.31365323,2026.8,2026.2,0.001]
[1770452842244,1.54716965,2026.8,2026.2,0.001]
[1770452842413,0.31365323,2026.8,2026.2,0.001]
[1770452842623,2.93761432,2027.1,2026.2,0.001]
[1770452842624,1.66475432,2027.1,2026.2,0.001]
[1770452842823,1.04705861,2027.0,2026.2,0.001]
[1770452843145,1.66475432,2027.1,2026.2,0.001]
[1770452843341,1.04718866,2027.0,2026.2,0.001]
[1770452843517,1.23321502,2027.3,2026.2,0.001]
[1770452843712,1.25683161,2027.1,2026.2,0.001]
[1770452843922,0.05891016,2026.8,2026.2,0.001]
[1770452844134,1.23353234,2026.7,2026.2,0.001]
[1770452846849,1.23351028,2026.8,2026.2,0.001]
[1770452847023,1.04574623,2026.7,2026.2,0.001]
[1770452847223,0.05891016,2026.8,2026.2,0.001]
[1770452847423,1.04582256,2026.7,2026.2,0.001]
[1770452847653,0.81233586,2026.8,2026.2,0.001]
[1770452847842,1.04627869,2026.7,2026.4,0.001]
[1770452848041,0.81233586,2026.8,2026.4,0.001]
[1770452848246,0.002,2026.6,2026.4,0.001]
[1770452849654,1.19992145,2026.6,2026.2,0.001]
[1770452850233,0.05891016,2026.4,2025.9,0.001]
[1770452850554,0.05891016,2026.4,2025.5,0.001]
[1770452850555,0.05891016,2026.1,2025.5,0.001]
[1770452850759,1.23395853,2026.0,2025.5,0.001]
[1770452850957,0.62285805,2025.9,2025.5,0.001]
[1770452851728,0.62285805,2025.9,2025.3,0.001]
[1770452853028,1.23408036,2025.8,2025.3,0.001]
[1770452853229,0.62285805,2025.9,2025.3,0.001]
[1770452853531,1.30826531,2026.5,2025.3,0.001]
[1770452853532,1.23381136,2026.3,2025.3,0.001]
[1770452853957,1.19792145,2026.1,2025.3,0.001]
[1770452855263,1.23395853,2026.0,2025.3,0.001]
[1770452855951,1.23377584,2026.3,2025.3,0.001]
[1770452856158,1.0410697,2026.2,2025.3,0.001]
[1770452856332,2.43992958,2026.3,2025.3,0.001]
[1770452856333,0.34809993,2026.1,2025.3,0.001]
[1770452857151,1.23372274,2026.4,2025.3,1.24409528]
[1770452857356,1.23372274,2026.4,2025.4,1.23432408]
[1770452857855,1.23559592,2026.6,2025.5,1.24309528]
[1770452858033,0.002,2026.6,2025.5,1.24309528]
[1770452858637,1.23559909,2026.6,2025.5,1.24309528]
[1770452858834,0.002,2026.6,2025.6,1.49083722]
[1770452859436,0.002,2026.6,2025.7,1.23414128]
[1770452859955,1.20615374,2026.5,2025.6,1.23415765]
[1770452860164,1.04410646,2026.4,2025.6,1.23415765]
[1770452860846,2.34814188,2026.4,2025.5,1.23522386]
[1770452861038,0.53034743,2026.3,2025.5,1.23522386]
[1770452861238,0.53034743,2026.3,2025.5,1.2352541]
[1770452861239,2.87648931,2026.3,2025.5,1.2352541]
[1770452861459,2.27798387,2026.2,2025.5,0.001]
[1770452861658,1.04410646,2026.1,2025.5,0.001]
[1770452863864,2.2780572,2026.1,2025.5,0.001]
[1770452864071,1.8961544,2026.0,2025.5,0.001]
[1770452864263,0.85155374,2026.0,2025.5,0.001]
[1770452864736,1.04383171,2025.9,2025.3,0.001]
[1770452864940,0.85155374,2026.0,2025.3,0.001]
[1770452864941,1.04383171,2025.8,2025.3,0.001]
[1770452865137,2.15730457,2026.0,2025.3,0.001]
[1770452865342,1.68441644,2025.9,2025.3,0.001]
[1770452865659,1.04386666,2025.8,2025.3,0.001]
[1770452865964,0.64054978,2025.9,2025.3,0.001]
[1770452866150,1.04360348,2025.8,2025.3,0.001]
[1770452866350,0.64054978,2025.9,2025.3,0.001]
[1770452866668,1.0435997,2025.8,2025.3,0.001]
[1770452866964,0.85155374,2026.0,2025.3,0.001]
[1770452867269,1.04315198,2025.9,2025.3,0.001]
[1770452867456,0.85155374,2026.0,2025.3,0.001]
[1770452867662,1.04272035,2025.9,2025.3,0.001]
[1770452867858,1.30575083,2026.2,2025.3,0.001]
[1770452868063,1.04240658,2026.1,2025.4,1.23432408]
[1770452868262,0.53034743,2026.3,2025.4,2.47741936]
[1770452868469,1.04260209,2026.2,2025.5,1.24309528]
[1770452868641,1.7641304,2026.3,2025.5,1.24309528]
[1770452868841,1.04325246,2026.2,2025.5,1.24309528]
[1770452869038,0.53034743,2026.3,2025.6,0.24774194]
[1770452869238,1.04342385,2026.2,2025.6,0.24774194]
[1770452869442,0.53034743,2026.3,2025.6,0.24774194]
[1770452869673,1.04314775,2026.2,2025.6,0.24774194]
[1770452869970,0.53034743,2026.3,2025.6,0.24774194]
[1770452870172,1.04371032,2026.2,2025.7,1.23414128]
[1770452870343,0.53034743,2026.3,2025.7,2.00029564]
[1770452870538,1.04375587,2026.2,2025.7,2.00029564]
[1770452870743,0.002,2026.4,2025.7,2.00029564]
[1770452870965,1.04368534,2026.3,2025.7,2.00029564]
[1770452871167,0.002,2026.4,2025.7,3.24339092]
[1770452871746,0.002,2026.4,2025.8,1.24309528]
[1770452871952,0.002,2026.4,2025.9,1.56743437]
[1770452872252,0.002,2026.4,2025.9,1.23401745]
[1770452873449,0.002,2026.0,2025.9,1.23401745]
[1770452874285,0.002,2026.0,2025.8,6.17936534]
[1770452876146,1.74917864,2026.8,2025.8,6.17936534]
[1770452876147,0.002,2026.8,2026.1,1.24309528]
[1770452877610,0.002,2027.1,2026.1,1.24309528]
[1770452877750,0.002,2027.0,2026.2,0.24770538]
[1770452877954,0.002,2027.0,2026.2,1.49080066]
[1770452878179,0.002,2027.0,2026.3,1.23377584]
[1770452878655,0.002,2027.0,2026.4,1.24309528]
[1770452878981,0.002,2027.0,2026.5,0.24768711]
[1770452879148,0.002,2027.0,2026.2,6.42590405]
[1770452879149,1.20615374,2027.0,2026.2,1.23183086]
[1770452879351,0.002,2027.1,2026.2,2.47492614]
[1770452879670,1.0438811,2027.0,2026.2,2.47492614]
[1770452879858,0.002,2027.1,2026.3,1.98412259]
[1770452880362,1.23506662,2027.5,2026.6,1.24309528]
[1770452880363,0.002,2027.5,2026.6,1.24309528]
[1770452880570,0.002,2027.5,2026.8,1.24309528]
[1770452881190,0.002,2027.5,2026.5,1.24309528]
[1770452881364,1.04468218,2027.4,2026.4,1.23371496]
[1770452881679,1.04507004,2027.3,2026.4,1.23371496]
[1770452881885,1.04507004,2027.2,2026.4,1.23371496]
[1770452882085,1.2670639,2027.5,2026.4,1.23371496]
[1770452882254,1.04512205,2027.4,2026.4,1.23371496]
[1770452882453,1.04512205,2027.3,2026.4,2.47681024]
[1770452882652,1.23312547,2027.4,2026.5,0.81526974]
[1770452882885,1.04617248,2027.3,2026.5,0.81526974]
[1770452883187,1.23312547,2027.4,2026.5,0.81526974]
[1770452883598,1.04631101,2027.3,2026.5,0.81526974]
[1770452883796,2.43927921,2027.4,2026.5,0.81526974]
[1770452884100,1.78367815,2027.3,2026.5,0.81526974]
[1770452884398,0.73734802,2027.3,2026.5,0.81526974]
[1770452884604,1.97051972,2027.3,2026.5,2.04887789]
[1770452884901,2.25186415,2027.2,2026.4,1.23370797]
[1770452885062,1.20615374,2027.2,2026.4,1.23370797]
[1770452885263,1.20615374,2027.2,2026.2,4.93519511]
[1770452885264,0.73734802,2027.3,2026.6,1.23359321]
[1770452885581,0.002,2027.5,2026.6,2.47668849]
[1770452885899,0.002,2027.0,2026.6,2.47668849]
[1770452886301,0.002,2027.2,2026.7,1.17016225]
[1770452886501,0.002,2027.2,2026.8,1.23347148]
[1770452886704,0.002,2027.5,2026.8,1.23347148]
[1770452886705,0.002,2027.5,2026.9,1.17016225]
[1770452888008,0.002,2027.5,2026.9,0.73375197]
[1770452888594,0.002,2027.5,2027.0,1.23334977]
[1770452888981,0.002,2027.5,2027.1,1.17016225]
[1770452890389,0.002,2027.5,2027.0,1.23334977]
[1770452891908,0.002,2027.5,2026.8,1.23344055]
[1770452892079,0.002,2027.5,2026.4,4.93462805]
[1770452892279,0.002,2027.5,2026.2,1.2538303]
[1770452892280,0.002,2028.1,2027.2,1.2538303]
[1770452892697,0.002,2028.1,2027.4,1.2538303]
[1770452892901,0.002,2028.1,2027.3,1.23316726]
[1770452893183,0.002,2028.1,2027.4,1.2538303]
[1770452893389,0.002,2028.1,2027.4,1.99579696]
[1770452894082,0.002,2028.1,2027.4,0.74196666]
[1770452894891,0.002,2028.1,2027.4,1.97503256]
[1770452895585,0.002,2028.1,2027.4,3.22886286]
[1770452898686,0.002,2027.9,2027.4,3.22886286]
[1770452898918,0.002,2027.9,2027.6,1.2329848]
[1770452899984,0.002,2027.9,2027.5,2.04915206]
[1770452903212,0.002,2027.9,2027.4,1.23306747]
[1770452903402,0.002,2027.9,2027.0,6.18717038]
[1770452903988,1.25857275,2027.7,2026.8,0.001]
[1770452904210,1.25857275,2027.7,2026.9,1.2334058]
[1770452904410,1.25857275,2027.7,2026.8,0.001]
[1770452904611,0.002,2027.9,2026.8,0.001]
[1770452904612,1.25857275,2027.5,2026.8,0.001]
[1770452904915,1.04485437,2027.4,2026.5,0.001]
[1770452905091,1.04485437,2027.4,2026.9,1.23341052]
[1770452905092,0.37165151,2027.4,2026.9,1.23341052]
[1770452905286,2.49149675,2027.7,2026.5,1.23465408]
[1770452905487,1.04565985,2027.6,2026.5,1.23465408]
[1770452905687,1.04565985,2027.5,2026.5,1.23465408]
[1770452905913,1.25857275,2027.6,2026.5,1.23465408]
[1770452907392,1.25857275,2027.6,2026.5,0.001]
[1770452907393,2.49161419,2027.6,2026.5,0.001]
[1770452907599,1.7887211,2027.5,2026.5,0.001]
[1770452907799,1.04638219,2027.4,2026.5,0.001]
[1770452908412,2.30495494,2027.4,2026.5,0.001]
[1770452908590,1.04638219,2027.3,2026.5,0.001]
[1770452908790,1.25857275,2027.4,2026.5,0.001]
[1770452908990,2.30471008,2027.3,2026.5,0.001]
[1770452909217,1.04613733,2027.2,2026.5,0.001]
[1770452909392,1.23321585,2027.3,2026.5,0.001]
[1770452909592,2.92132897,2027.2,2026.5,0.001]
[1770452909910,1.25857275,2027.0,2026.5,0.001]
[1770452910906,1.25857275,2027.0,2026.7,0.001]
[1770452911506,2.49196347,2027.0,2026.7,0.001]
[1770452912221,1.25857275,2026.8,2025.7,1.23508036]
[1770452912419,1.25857275,2026.6,2025.7,1.23508036]
[1770452913528,2.49220571,2026.6,2025.7,0.001]
[1770452913695,1.25857275,2026.5,2025.7,0.001]
[1770452913901,2.30301175,2026.4,2025.7,0.001]
[1770452914111,1.25857275,2026.4,2025.7,0.001]
[1770452915108,1.23363296,2026.6,2025.7,0.001]
[1770452915303,1.78608345,2026.5,2025.7,0.001]
[1770452915525,0.74263404,2026.5,2025.7,0.001]
[1770452915734,1.97633041,2026.5,2025.7,0.001]
[1770452916323,1.24354592,2026.4,2025.7,0.001]
[1770452916522,0.74263404,2026.5,2025.7,0.001]
[1770452916737,1.23329363,2027.1,2025.7,1.16544365]
[1770452916936,1.24354592,2027.0,2025.7,0.001]
[1770452917121,1.24354592,2026.8,2025.7,0.001]
[1770452917816,1.23339496,2027.0,2025.8,1.16444365]
[1770452918136,1.23330997,2027.1,2025.8,1.16444365]
[1770452918310,1.91158408,2027.1,2025.8,1.16444365]
[1770452918740,4.93208984,2027.6,2026.0,1.16444365]
[1770452919049,4.93208984,2027.6,2026.0,1.39801395]
[1770452919050,1.24354592,2027.5,2026.0,1.39801395]
[1770452919273,1.2329848,2027.6,2026.0,1.39801395]
[1770452919854,6.17748515,2027.7,2026.2,1.16444365]
[1770452920218,1.24354592,2027.6,2026.2,1.16444365]
[1770452920417,1.86129443,2027.5,2026.2,1.16444365]
[1770452920845,0.61774851,2027.5,2026.2,1.16444365]
[1770452921822,0.61774851,2027.5,2026.4,1.16444365]
[1770452922123,1.23497977,2027.7,2026.4,1.16444365]
[1770452923023,0.002,2027.7,2026.4,1.16444365]
[1770452923227,1.23494689,2027.7,2026.4,1.16444365]
[1770452923422,0.002,2027.7,2026.4,1.16444365]
[1770452923751,0.002,2027.7,2026.6,1.16444365]
[1770452924577,1.24554592,2027.7,2026.6,1.16444365]
[1770452924723,1.24554592,2027.7,2026.5,1.23365408]
[1770452924921,1.24554592,2027.7,2026.6,0.61682704]
[1770452924922,1.30245608,2027.6,2026.6,0.61682704]
[1770452925144,1.24554592,2027.5,2026.6,0.61682704]
[1770452925552,1.24554592,2027.5,2026.0,1.16444365]
[1770452925766,1.23334977,2027.0,2025.9,0.001]
[1770452925937,2.47689569,2027.0,2025.9,0.001]
[1770452926141,4.93299969,2027.2,2025.9,1.16544365]
[1770452926336,2.28664815,2027.1,2025.9,1.16544365]
[1770452926537,0.72196478,2027.0,2025.9,1.16544365]
[1770452927133,1.24354592,2026.8,2025.9,0.001]
[1770452927551,0.72196478,2027.0,2025.9,1.16544365]
[1770452927755,1.95531911,2027.0,2026.0,1.23395853]
[1770452928362,1.24354592,2026.9,2025.9,1.23498881]
[1770452928539,1.56343242,2026.8,2025.9,1.23498881]
[1770452929660,0.3198865,2026.8,2025.9,1.23498881]
[1770452929866,1.23353234,2026.7,2025.9,0.001]
[1770452931888,1.55338578,2026.8,2025.9,0.001]
[1770452933476,1.04725974,2026.7,2025.9,0.001]
[1770452933679,0.87780593,2026.7,2025.9,0.001]
[1770452934377,2.11138106,2026.7,2025.9,0.001]
[1770452935483,1.24354592,2026.5,2025.9,0.001]
[1770452936107,1.30245608,2026.3,2025.5,0.001]
[1770452936293,12.30258235,2026.1,2025.0,0.001]
[1770452936475,1.24354592,2025.9,2025.0,0.001]
[1770452936676,1.04766155,2025.8,2025.0,0.001]
[1770452936870,1.04766155,2025.7,2025.0,0.001]
[1770452937071,1.24354592,2025.8,2025.1,1.23447773]
[1770452937276,1.04767676,2025.7,2025.0,1.23552752]
[1770452937601,1.24354592,2025.8,2025.0,0.001]
[1770452937797,1.04729392,2025.7,2025.0,0.001]
[1770452937990,2.47780906,2025.5,2025.0,0.001]
[1770452938181,2.47780906,2025.5,2024.8,0.001]
[1770452938182,3.13706146,2025.4,2024.2,4.93998285]
[1770452938387,3.13706146,2025.4,2024.1,1.23505582]
[1770452938388,1.24354592,2025.2,2024.1,1.23505582]
[1770452939107,1.24354592,2025.2,2024.1,1.23508643]
[1770452939295,0.84621556,2025.4,2024.1,1.23508643]
[1770452939608,1.04508867,2025.3,2024.1,1.23508643]
[1770452939810,1.04508867,2025.2,2024.2,0.73400489]
[1770452939991,1.2345679,2025.0,2023.8,4.94119322]
[1770452940192,3.32412378,2025.4,2023.8,1.16444365]
[1770452940390,1.23423866,2025.6,2024.1,1.16444365]
[1770452940616,2.47778458,2025.6,2024.1,1.16444365]
[1770452940910,2.47778458,2025.6,2023.7,12.2943974]
[1770452940911,0.05891016,2025.1,2023.7,1.23536097]
[1770452941136,0.05891016,2024.8,2023.7,1.23536097]
[1770452941283,1.34060394,2024.8,2023.8,0.73412485]
[1770452941482,2.47778458,2025.6,2023.9,1.16444365]
[1770452941909,1.04348036,2025.5,2023.9,1.16444365]
[1770452942085,2.47778458,2025.6,2024.1,1.16444365]
[1770452944011,2.47778458,2025.6,2023.0,4.94312621]
[1770452944012,2.47854073,2024.3,2023.0,4.94312621]
[1770452944314,1.98539792,2024.2,2023.1,0.64367437]
[1770452944484,0.741852,2024.2,2023.1,0.64367437]
[1770452944683,1.23498013,2024.4,2023.1,0.64367437]
[1770452944993,1.24354592,2024.3,2023.1,0.64367437]
[1770452945317,1.29389029,2024.4,2023.1,0.64367437]
[1770452945318,1.24354592,2024.1,2023.1,0.64367437]
[1770452945505,0.05891016,2024.1,2023.1,0.64367437]
[1770452946599,1.23517786,2024.0,2023.2,1.23566627]
[1770452946789,0.62346837,2023.9,2023.2,1.23566627]
[1770452946989,2.47856943,2024.3,2023.2,1.23566627]
[1770452948495,2.4785433,2024.3,2023.1,4.94268013]
[1770452949015,1.23499738,2024.3,2023.1,6.07422721]
[1770452949718,1.23481181,2024.6,2023.2,1.17761941]
[1770452949904,1.23481181,2024.6,2023.3,1.78964936]
[1770452949905,0.73369403,2024.5,2023.3,1.78964936]
[1770452950103,0.73369403,2024.5,2023.4,1.17761941]
[1770452950303,2.39767334,2024.7,2023.4,1.17761941]
[1770452950614,0.002,2024.6,2023.5,1.23548307]
[1770452951225,0.002,2024.6,2023.6,1.17761941]
[1770452952718,0.002,2024.6,2023.8,1.17761941]
[1770452954516,0.002,2024.6,2024.0,1.17761941]
[1770452955513,0.002,2024.6,2024.0,0.73538139]
[1770452956897,0.002,2024.6,2024.1,1.23511684]
[1770452957122,0.002,2024.8,2024.2,1.17761941]
[1770452957632,0.002,2024.8,2024.1,1.23511684]
[1770452958722,0.002,2024.8,2024.2,1.17761941]
[1770452959024,0.002,2024.8,2024.3,1.23499481]
[1770452959227,0.002,2024.8,2024.4,0.73525935]
[1770452960298,0.002,2024.8,2024.3,1.23499481]
[1770452960930,0.002,2024.8,2024.2,4.93997925]
[1770452961641,0.002,2024.8,2023.3,0.001]
[1770452961642,12.25291991,2024.4,2023.3,0.001]
[1770452961854,1.22529199,2024.3,2023.3,4.94339455]
[1770452962156,1.19388348,2024.4,2023.7,1.23535774]
[1770452962439,1.19388348,2024.4,2023.5,4.94178742]
[1770452962440,1.19388348,2024.4,2023.6,1.23537439]
[1770452962937,1.23499481,2024.3,2023.3,0.001]
[1770452963233,1.19388348,2024.7,2023.3,0.001]
[1770452963407,2.42873099,2024.6,2023.3,0.001]
[1770452963607,0.74268464,2024.5,2023.3,0.73668532]
[1770452964450,0.74268464,2024.5,2023.3,1.91430473]
[1770452964643,11.05903643,2024.2,2023.3,0.001]
[1770452965010,1.23507976,2024.2,2023.3,0.001]
[1770452965837,2.42896324,2024.2,2023.3,0.001]
[1770452966039,2.42895322,2024.2,2023.3,0.001]
[1770452967610,1.19388348,2024.1,2023.3,0.001]
[1770452967913,1.19388348,2023.9,2023.3,0.001]
[1770452968335,1.19388348,2023.3,2022.2,0.001]
[1770452968535,2.23885493,2023.2,2022.2,0.001]
[1770452968736,1.19388348,2023.2,2022.5,1.23609202]
[1770452969243,2.41917547,2023.2,2022.4,1.23614415]
[1770452969643,1.23572734,2023.1,2022.2,0.001]
[1770452970454,3.65488849,2023.2,2022.2,0.001]
[1770452971347,1.19388348,2023.0,2022.2,0.001]
[1770452971649,1.23584952,2022.9,2022.2,0.001]
[1770452971823,0.73731311,2022.8,2022.2,0.001]
[1770452973046,2.46097581,2023.2,2022.2,0.001]
[1770452976241,1.22529199,2023.2,2022.2,1.22936832]
[1770452976555,1.2176936,2023.5,2022.2,1.22936832]
[1770452976954,12.29444334,2023.7,2022.2,1.22936832]
[1770452977757,12.29444334,2023.7,2022.4,0.001]
[1770452978059,12.29444334,2023.7,2022.4,1.22936832]
[1770452978358,12.29444334,2023.7,2022.5,1.23609394]
[1770452978530,1.85558906,2023.6,2022.6,0.7409838]
[1770452979127,1.85558906,2023.6,2022.5,1.23609394]
[1770452979128,1.2176936,2023.3,2022.5,1.23609394]
[1770452979331,1.2176936,2023.3,2022.4,1.23712719]
[1770452979626,11.05903643,2023.4,2022.4,1.23712719]
[1770452980033,3.07328266,2023.6,2022.4,1.23712719]
[1770452980652,1.23548307,2023.5,2022.4,0.001]
[1770452980864,0.9250698,2023.4,2022.4,0.001]
[1770452981666,3.09103455,2023.6,2022.4,1.22936832]
[1770452981835,1.23544549,2023.6,2022.4,1.22936832]
[1770452982235,1.29435565,2023.6,2022.4,1.22936832]
[1770452982432,1.29435565,2023.6,2022.5,1.23609394]
[1770452982662,2.51204925,2023.6,2022.5,1.23609394]
[1770452984057,1.2176936,2023.5,2022.5,1.23609394]
[1770452984241,0.25120493,2023.4,2022.5,2.34869482]
[1770452984758,1.48678824,2023.4,2022.5,2.34869482]
[1770452985763,13.76351827,2023.4,2022.5,2.34869482]
[1770452985968,13.76351827,2023.4,2022.5,1.23609394]
[1770452986472,1.2176936,2023.3,2022.5,1.23609394]
[1770452986665,2.45360421,2022.8,2022.2,0.001]
[1770452987044,2.45342626,2023.1,2022.2,0.001]
[1770452987570,0.73961002,2023.0,2022.2,0.001]
[1770452988868,1.23584952,2022.9,2022.2,0.001]
[1770452989066,3.19313306,2023.0,2022.2,0.001]
[1770452989850,3.19313306,2023.0,2022.4,0.001]
[1770452990149,1.97739953,2023.0,2022.4,0.001]
[1770452990550,0.69203372,2022.9,2022.4,0.001]
[1770452991164,1.9279188,2022.9,2022.4,0.001]
[1770452991494,1.92788363,2022.9,2022.4,0.001]
[1770452991664,1.92788813,2022.9,2022.4,0.001]
[1770452992974,0.69203372,2022.9,2022.4,0.001]
[1770452993276,1.23783087,2023.0,2022.4,0.001]
[1770452994063,1.04785593,2022.9,2022.4,0.001]
[1770452994260,1.23783087,2023.0,2022.4,0.001]
[1770452994570,1.04865027,2022.9,2022.4,0.001]
[1770452995080,1.23783087,2023.0,2022.4,0.001]
[1770452995276,2.28456243,2022.9,2022.4,0.001]
[1770452995482,1.04865249,2022.8,2022.4,0.001]
[1770452997452,1.04865249,2022.7,2022.4,0.001]
[1770452997788,1.23779596,2023.0,2022.4,0.001]
[1770452997983,1.05108285,2022.9,2022.4,0.001]
[1770452998281,1.05108285,2022.8,2022.4,0.001]
[1770452998482,1.2176936,2022.6,2021.1,4.94761443]
[1770452998780,1.05197116,2022.5,2021.7,1.23654378]
[1770452999078,1.05197116,2022.4,2021.7,1.23654378]
[1770452999280,2.61741582,2022.8,2021.6,1.22836832]
[1770452999281,1.05197116,2022.3,2021.6,1.22836832]
[1770452999479,1.23593905,2022.8,2021.6,1.22836832]
[1770452999664,2.99452866,2022.7,2021.6,1.22836832]
[1770452999863,1.05145206,2022.6,2021.6,1.22836832]
[1770453000062,1.05145206,2022.5,2021.6,1.22836832]
[1770453000279,1.9430766,2022.7,2021.6,1.22836832]
[1770453000474,1.05110554,2022.6,2021.6,1.22836832]
[1770453000692,0.002,2023.0,2021.8,1.46193862]
[1770453000989,0.002,2023.0,2022.0,1.22836832]
[1770453001188,0.002,2023.0,2022.1,1.23633846]
[1770453001567,1.2196936,2023.0,2022.1,1.23633846]
[1770453003404,1.2176936,2022.8,2022.3,0.001]
[1770453003690,1.2196936,2022.8,2022.3,0.001]
[1770453004177,1.95978226,2022.8,2022.3,0.001]
[1770453004897,0.002,2022.8,2022.3,0.001]
[1770453006670,0.25120493,2023.4,2022.3,1.10802552]
[1770453007189,6.14457703,2023.6,2022.3,1.10802552]
[1770453007190,2.43815961,2023.6,2022.3,1.10802552]
[1770453007589,2.43815961,2023.6,2022.4,2.34318058]
[1770453007790,1.2027355,2023.6,2022.4,2.34318058]
[1770453008093,1.2027355,2023.4,2022.4,1.23615506]
[1770453008692,13.26906433,2023.6,2022.4,2.34318058]
[1770453008897,1.94133862,2023.5,2022.5,0.72888008]
[1770453009070,1.2027355,2023.4,2022.5,0.72888008]
[1770453009470,2.43831573,2023.4,2022.6,1.23603282]
[1770453009686,1.14376611,2023.3,2022.6,1.23603282]
[1770453010890,3.1768661,2023.5,2022.6,1.23603282]
[1770453011191,2.12960274,2023.4,2022.6,2.42135037]
[1770453011693,1.14376611,2023.8,2022.6,3.6374349]
[1770453012664,1.05438779,2023.7,2022.6,3.6374349]
[1770453012867,1.05438779,2023.6,2022.7,1.21608453]
[1770453013089,2.37891146,2024.1,2022.7,1.21608453]
[1770453013269,1.78670193,2024.0,2022.9,1.21608453]
[1770453013590,1.14376611,2023.8,2022.9,1.23584952]
[1770453014294,2.37893556,2024.1,2022.9,1.23584952]
[1770453014590,1.05354125,2024.0,2022.9,2.45193405]
[1770453014765,1.05354125,2023.9,2022.9,2.45193405]
[1770453014966,1.05354125,2023.8,2023.0,0.77590756]
[1770453015191,2.37889233,2024.1,2023.0,0.77590756]
[1770453015390,1.05327147,2024.0,2023.0,0.77590756]
[1770453015612,1.05327147,2023.9,2023.1,1.23572734]
[1770453015771,2.37888685,2024.1,2023.1,1.23572734]
[1770453015968,2.19685556,2024.0,2023.2,0.81706288]
[1770453016189,1.05308945,2023.9,2023.2,0.81706288]
[1770453016591,0.002,2023.8,2023.2,0.81706288]
[1770453017299,1.14576611,2023.8,2023.1,1.23572734]
[1770453017521,1.14376611,2023.4,2022.3,0.001]
[1770453017799,1.14376611,2023.3,2022.3,0.001]
[1770453018403,1.14376611,2023.1,2022.3,0.001]
[1770453018621,1.14376611,2023.4,2022.3,0.001]
[1770453018794,1.14376611,2023.2,2022.3,0.001]
[1770453019104,2.19586482,2023.1,2022.3,0.001]
[1770453019291,1.05212762,2023.0,2022.3,0.001]
[1770453019489,1.14376611,2022.9,2022.3,0.001]
[1770453019699,1.14376611,2022.9,2021.6,1.16908453]